fUST/lending_fUST_20240125
["ID","MTS","AMOUNT","RATE_DAILY","PERIOD"]
[312705898,1706174201434,-500.0,0.00049589,120]
[312705899,1706174201464,-522.23,0.00049589,120]
[312705900,1706174201494,-500.0,0.00049589,120]
[312705901,1706174201526,-504.3574933,0.00049589,120]
[312705902,1706174201556,-1611.85,0.00049589,120]
[312705903,1706174201585,-500.0,0.00049589,120]
[312705904,1706174201614,-500.0,0.00049589,120]
[312705905,1706174201644,-500.0,0.00049589,120]
[312705906,1706174201675,-500.0,0.00049589,120]
[312705907,1706174201705,-594.6,0.00049589,120]
[312705908,1706174201734,-500.0,0.00049589,120]
[312705909,1706174201764,-500.0,0.00049589,60]
[312705910,1706174201909,-500.0,0.00049589,120]
[312705911,1706174201939,-773.17,0.00049589,120]
[312705912,1706174201962,-576.56,0.00049589,120]
[312705913,1706174201985,-1394.39,0.00049589,120]
[312705914,1706174202009,-500.0,0.00049589,120]
[312705915,1706174202034,-500.0,0.00049589,120]
[312705916,1706174202057,-500.0,0.00049589,120]
[312705917,1706174202082,-1637.55,0.00049589,120]
[312705918,1706174202105,-500.0,0.00049589,120]
[312705919,1706174202129,-500.0,0.00049589,120]
[312705920,1706174202153,-500.93738174,0.00049589,120]
[312705921,1706174202177,-500.0,0.00049589,120]
[312705922,1706174202200,-379.29224734,0.00049589,120]
[312705923,1706174207800,-500.0,0.00049315,120]
[312705924,1706174207826,-500.0,0.00049315,120]
[312705925,1706174207854,-2198.17,0.00049315,120]
[312705926,1706174207879,-120.70775266,0.00049589,120]
[312705927,1706174207904,-500.0,0.00049589,120]
[312705928,1706174207929,-500.0,0.00049589,120]
[312705929,1706174207954,-500.0,0.00049589,120]
[312705930,1706174207979,-503.32600833,0.00049589,120]
[312705931,1706174208003,-2198.17,0.00049589,120]
[312705932,1706174208026,-500.0,0.00049863,120]
[312705933,1706174208052,-500.0,0.00049863,120]
[312705934,1706174208075,-279.50169444,0.00049863,120]
[312705935,1706174208098,-500.0,0.00049863,120]
[312705936,1706174208120,-560.83,0.00049863,120]
[312705937,1706174208144,-313.89689538,0.00049863,120]
[312705938,1706174208169,-500.0,0.00049863,120]
[312705939,1706174208193,-500.0,0.00049863,120]
[312705940,1706174208216,-500.0,0.00049863,120]
[312705941,1706174208241,-500.0,0.00049863,120]
[312705942,1706174208266,-500.0,0.00049863,120]
[312705943,1706174208289,-542.32,0.00049863,120]
[312705944,1706174208312,-500.0,0.00049863,120]
[312705945,1706174208336,-500.0,0.00049863,120]
[312705946,1706174208360,-500.0,0.00049863,120]
[312705947,1706174208383,-500.0,0.00049863,120]
[312705948,1706174208405,-500.0,0.00049863,120]
[312705949,1706174208428,-509.01403738,0.00049863,120]
[312705950,1706174208454,-500.0,0.00049863,120]
[312705951,1706174208477,-500.0,0.00049863,120]
[312705952,1706174208501,-500.0,0.00049863,120]
[312705953,1706174208525,-500.0,0.00049863,120]
[312705954,1706174208548,-500.0,0.00049863,120]
[312705955,1706174208571,-267.75773019,0.00049863,120]
[312705956,1706174208594,-500.0,0.00049863,120]
[312705957,1706174208618,-500.0,0.00049863,120]
[312705958,1706174208641,-500.0,0.00049863,120]
[312705959,1706174208666,-500.0,0.00049863,120]
[312705960,1706174208690,-500.0,0.00049863,120]
[312705961,1706174208713,-500.0,0.00049863,120]
[312705962,1706174208736,-500.0,0.00049863,120]
[312705963,1706174208761,-500.0,0.00049863,120]
[312705964,1706174208784,-500.0,0.00049863,120]
[312705965,1706174208808,-732.6,0.00049863,120]
[312705966,1706174208831,-500.0,0.00049863,120]
[312705967,1706174208857,-500.0,0.00049863,120]
[312705968,1706174208882,-500.0,0.00049863,120]
[312705969,1706174208907,-500.0,0.00049863,120]
[312705970,1706174208930,-502.05140863,0.00049863,120]
[312705971,1706174208953,-500.0,0.00049863,120]
[312705972,1706174208977,-500.0,0.00049863,120]
[312705973,1706174209000,-500.0,0.00049863,120]
[312705974,1706174209023,-500.0,0.00049863,120]
[312705975,1706174209046,-623.76,0.00049863,120]
[312705976,1706174209069,-500.0,0.00049863,120]
[312705977,1706174209092,-500.0,0.00049863,120]
[312705978,1706174209116,-500.0,0.00049863,120]
[312705979,1706174209139,-393.4726095,0.00049863,120]
[312705980,1706174209161,-500.0,0.00049863,120]
[312705981,1706174209185,-500.0,0.00049863,120]
[312705982,1706174209208,-500.0,0.00049863,120]
[312705983,1706174209231,-505.33,0.00049863,120]
[312705984,1706174209254,-362.38993479,0.00049863,120]
[312705985,1706174209276,-500.0,0.00049863,120]
[312705986,1706174209299,-500.0,0.00049863,120]
[312705987,1706174209321,-500.0,0.00049863,120]
[312705988,1706174209344,-500.0,0.00049863,120]
[312705989,1706174209448,-708.5,0.00049863,120]
[312705990,1706174209472,-500.0,0.00049863,120]
[312705991,1706174209494,-500.0,0.00049863,120]
[312705992,1706174209517,-500.0,0.00049863,120]
[312705993,1706174209540,-519.85,0.00049863,120]
[312705994,1706174209563,-541.46,0.00049863,120]
[312705995,1706174209586,-500.0,0.00049863,120]
[312705996,1706174209610,-500.0,0.00049863,120]
[312705997,1706174209633,-500.0,0.00049863,120]
[312705998,1706174209659,-621.56,0.00049863,120]
[312705999,1706174209683,-150.0,0.00049863,120]
[312706000,1706174209707,-500.0,0.00049863,120]
[312706001,1706174209731,-500.0,0.00049863,120]
[312706002,1706174209755,-500.0,0.00049863,120]
[312706003,1706174209778,-500.0,0.00049863,120]
[312706004,1706174209801,-500.0,0.00049863,120]
[312706005,1706174209825,-500.0,0.00049863,120]
[312706006,1706174209850,-450.32140205,0.00049863,120]
[312706007,1706174209873,-541.89,0.00049863,120]
[312706008,1706174209895,-500.0,0.00049863,120]
[312706009,1706174209923,-500.0,0.00049863,120]
[312706010,1706174209947,-500.0,0.00049863,120]
[312706011,1706174209971,-647.93,0.00049863,120]
[312706012,1706174209995,-500.0,0.00049863,120]
[312706013,1706174210020,-500.0,0.00049863,120]
[312706014,1706174210046,-511.47,0.00049863,120]
[312706015,1706174210071,-500.0,0.00049863,120]
[312706016,1706174210096,-500.0,0.00049863,120]
[312706017,1706174210119,-500.0,0.00049863,120]
[312706018,1706174210143,-500.0,0.00049863,120]
[312706019,1706174210170,-585.41669082,0.00049863,120]
[312706020,1706174210195,-500.0,0.00049863,120]
[312706021,1706174210219,-500.0,0.00049863,120]
[312706022,1706174210243,-500.0,0.00049863,120]
[312706023,1706174210268,-500.0,0.00049863,120]
[312706024,1706174210292,-500.0,0.00049863,120]
[312706025,1706174210318,-500.0,0.00049863,120]
[312706026,1706174210342,-500.0,0.00049863,120]
[312706027,1706174210366,-500.0,0.00049863,120]
[312706028,1706174210391,-1320.99,0.00049863,120]
[312706029,1706174210417,-500.0,0.00049863,120]
[312706030,1706174210442,-500.0,0.00049863,120]
[312706031,1706174210465,-500.0,0.00049863,120]
[312706032,1706174210489,-500.0,0.00049863,120]
[312706033,1706174210512,-500.0,0.00049863,120]
[312706034,1706174210536,-933.93,0.00049863,120]
[312706035,1706174210559,-500.0,0.00049863,120]
[312706036,1706174210583,-500.0,0.00049863,120]
[312706037,1706174210606,-528.98859335,0.00049863,120]
[312706038,1706174210630,-570.29,0.00049863,120]
[312706039,1706174210655,-500.0,0.00049863,120]
[312706040,1706174210678,-500.0,0.00049863,120]
[312706041,1706174210701,-500.0,0.00049863,120]
[312706042,1706174210724,-500.0,0.00049863,120]
[312706043,1706174210748,-500.0,0.00049863,120]
[312706044,1706174210773,-500.0,0.00049863,120]
[312706045,1706174210797,-519.7,0.00049863,120]
[312706046,1706174210819,-500.0,0.00049863,120]
[312706047,1706174210843,-500.0,0.00049863,120]
[312706048,1706174210867,-500.0,0.00049863,120]
[312706049,1706174210891,-500.0,0.00049863,120]
[312706050,1706174210917,-500.0,0.00049863,120]
[312706051,1706174210942,-1541.6,0.00049863,120]
[312706052,1706174210966,-1163.28,0.00049863,120]
[312706053,1706174210990,-500.0,0.00049863,120]
[312706054,1706174211015,-500.0,0.00049863,120]
[312706055,1706174211039,-306.97387227,0.00049863,120]
[312706056,1706174211152,-500.0,0.00049863,120]
[312706057,1706174211178,-500.0,0.00049863,120]
[312706058,1706174211202,-500.0,0.00049863,120]
[312706059,1706174211227,-680.71,0.00049863,120]
[312706060,1706174211251,-674.55,0.00049863,120]
[312706061,1706174211274,-500.0,0.00049863,120]
[312706062,1706174211298,-500.0,0.00049863,120]
[312706063,1706174211322,-500.0,0.00049863,120]
[312706064,1706174211346,-500.0,0.00049863,60]
[312706065,1706174211369,-500.0,0.00049863,120]
[312706066,1706174211393,-500.0,0.00049863,120]
[312706067,1706174211419,-500.0,0.00049863,120]
[312706068,1706174211444,-1391.77,0.00049863,120]
[312706069,1706174211469,-600.0,0.00049863,120]
[312706070,1706174211493,-500.0,0.00049863,120]
[312706071,1706174211517,-472.01937037,0.00049863,120]
[312706072,1706174211541,-1497.83,0.00049863,120]
[312706073,1706174211566,-1205.12,0.00049863,120]
[312706074,1706174211589,-500.0,0.00049863,120]
[312706075,1706174211613,-500.0,0.00049863,120]
[312706076,1706174211636,-500.0,0.00049863,120]
[312706077,1706174211661,-2036.55,0.00049863,120]
[312706078,1706174211686,-549.01,0.00049863,120]
[312706079,1706174211709,-605.42,0.00049863,120]
[312706080,1706174211734,-1951.66,0.00049863,120]
[312706081,1706174211763,-676.19,0.00049863,120]
[312706082,1706174211788,-1357.62,0.00049863,120]
[312706083,1706174211812,-500.0,0.00049863,120]
[312706084,1706174211837,-1041.67,0.00049863,120]
[312706085,1706174211862,-500.0,0.00049863,120]
[312706086,1706174211886,-500.0,0.00049863,120]
[312706087,1706174211911,-500.0,0.00049863,120]
[312706088,1706174211934,-500.0,0.00049863,120]
[312706089,1706174211959,-500.0,0.00049863,120]
[312706090,1706174211983,-545.27,0.00049863,120]
[312706091,1706174212007,-500.0,0.00049863,120]
[312706092,1706174212031,-2255.7,0.00049863,120]
[312706093,1706174212055,-500.0,0.00049863,120]
[312706094,1706174212078,-500.0,0.00049863,120]
[312706095,1706174212102,-500.0,0.00049863,120]
[312706096,1706174212126,-842.04,0.00049863,120]
[312706097,1706174212149,-500.0,0.00049863,120]
[312706098,1706174212173,-500.0,0.00049863,120]
[312706099,1706174212196,-522.23,0.00049863,120]
[312706100,1706174212221,-500.0,0.00049863,120]
[312706101,1706174212248,-1611.85,0.00049863,120]
[312706102,1706174212273,-500.0,0.00049863,120]
[312706103,1706174212297,-500.0,0.00049863,120]
[312706104,1706174212321,-500.0,0.00049863,120]
[312706105,1706174212344,-500.0,0.00049863,120]
[312706106,1706174212369,-594.6,0.00049863,120]
[312706107,1706174212396,-500.0,0.00049863,120]
[312706108,1706174212420,-500.0,0.00049863,60]
[312706109,1706174212443,-500.0,0.00049863,120]
[312706110,1706174212466,-773.17,0.00049863,120]
[312706111,1706174212490,-576.56,0.00049863,120]
[312706112,1706174212513,-500.0,0.00049863,120]
[312706113,1706174212538,-1394.39,0.00049863,120]
[312706114,1706174212561,-500.0,0.00049863,120]
[312706115,1706174212585,-500.0,0.00049863,120]
[312706116,1706174212609,-1637.55,0.00049863,120]
[312706117,1706174212633,-222.32963418,0.00049863,120]
[312706118,1706174212655,-500.0,0.00049863,120]
[312706119,1706174212679,-500.0,0.00049863,120]
[312706120,1706174212703,-500.0,0.00049863,120]
[312706121,1706174212809,-587.61485626,0.00049863,120]
[312706122,1706174212835,-500.0,0.00049863,120]
[312706123,1706174212859,-500.0,0.00049863,120]
[312706124,1706174212883,-2198.17,0.00049863,120]
[312706125,1706174212907,-1352.52629222,0.000499,120]
[312706126,1706174212931,-42253.60671444,0.0004997,120]
[312706127,1706174212954,-249.78379975,0.0005,120]
[312706128,1706174212977,-1849.51932288,0.0005,30]
[312706129,1706174213000,-150.0,0.0005,30]
[312706130,1706174213023,-600.0,0.0005,30]
[312706131,1706174213047,-500.0,0.00050136,120]
[312706132,1706174213070,-500.0,0.00050136,120]
[312706133,1706174213092,-500.0,0.00050136,120]
[312706134,1706174213115,-560.83,0.00050136,120]
[312706135,1706174213138,-500.0,0.00050136,120]
[312706136,1706174213162,-500.0,0.00050136,120]
[312706137,1706174213186,-500.0,0.00050136,120]
[312706138,1706174213210,-500.0,0.00050136,120]
[312706139,1706174213234,-500.0,0.00050136,120]
[312706140,1706174213258,-542.32,0.00050136,120]
[312706141,1706174213282,-500.0,0.00050136,120]
[312706142,1706174213305,-500.0,0.00050136,120]
[312706143,1706174213330,-500.0,0.00050136,120]
[312706144,1706174213355,-500.0,0.00050136,120]
[312706145,1706174213380,-500.0,0.00050136,120]
[312706146,1706174213405,-500.0,0.00050136,120]
[312706147,1706174213430,-500.0,0.00050136,120]
[312706148,1706174213457,-500.0,0.00050136,120]
[312706149,1706174213484,-500.0,0.00050136,120]
[312706150,1706174213508,-500.0,0.00050136,120]
[312706151,1706174213532,-500.0,0.00050136,120]
[312706152,1706174213558,-500.0,0.00050136,120]
[312706153,1706174213582,-500.0,0.00050136,120]
[312706154,1706174213606,-500.0,0.00050136,120]
[312706155,1706174213631,-500.0,0.00050136,120]
[312706156,1706174213655,-500.0,0.00050136,120]
[312706157,1706174213680,-500.0,0.00050136,120]
[312706158,1706174213704,-500.0,0.00050136,120]
[312706159,1706174213729,-500.0,0.00050136,120]
[312706160,1706174213753,-732.6,0.00050136,120]
[312706161,1706174213780,-500.0,0.00050136,120]
[312706162,1706174213806,-500.0,0.00050136,120]
[312706163,1706174213830,-500.0,0.00050136,120]
[312706164,1706174213854,-500.0,0.00050136,120]
[312706165,1706174213878,-500.36948788,0.00050136,120]
[312706166,1706174213903,-500.0,0.00050136,120]
[312706167,1706174213926,-500.0,0.00050136,120]
[312706168,1706174213950,-606.99445811,0.00050136,120]
[312706169,1706174213974,-623.76,0.00050136,120]
[312706170,1706174213998,-500.0,0.00050136,120]
[312706171,1706174214021,-500.0,0.00050136,120]
[312706172,1706174214045,-500.0,0.00050136,120]
[312706173,1706174214068,-500.0,0.00050136,120]
[312706174,1706174214092,-500.0,0.00050136,120]
[312706175,1706174214117,-500.0,0.00050136,120]
[312706176,1706174214140,-505.33,0.00050136,120]
[312706177,1706174214165,-500.0,0.00050136,120]
[312706178,1706174214189,-500.0,0.00050136,120]
[312706179,1706174214213,-500.0,0.00050136,120]
[312706180,1706174214238,-500.0,0.00050136,120]
[312706181,1706174214263,-708.5,0.00050136,120]
[312706182,1706174214287,-419.5165472,0.00050136,120]
[312706183,1706174214311,-500.0,0.00050136,120]
[312706184,1706174214415,-500.0,0.00050136,120]
[312706185,1706174214439,-519.85,0.00050136,120]
[312706186,1706174214464,-541.46,0.00050136,120]
[312706187,1706174214489,-500.0,0.00050136,120]
[312706188,1706174214517,-500.0,0.00050136,120]
[312706189,1706174214543,-500.0,0.00050136,120]
[312706190,1706174214569,-621.56,0.00050136,120]
[312706191,1706174214593,-150.0,0.00050136,120]
[312706192,1706174214618,-500.0,0.00050136,120]
[312706193,1706174214642,-500.0,0.00050136,120]
[312706194,1706174214670,-500.0,0.00050136,120]
[312706195,1706174214694,-500.0,0.00050136,120]
[312706196,1706174214718,-500.0,0.00050136,120]
[312706197,1706174214744,-500.0,0.00050136,120]
[312706198,1706174214769,-541.89,0.00050136,120]
[312706199,1706174214793,-500.0,0.00050136,120]
[312706200,1706174214819,-500.0,0.00050136,120]
[312706201,1706174214844,-500.0,0.00050136,120]
[312706202,1706174214870,-647.93,0.00050136,120]
[312706203,1706174214895,-500.0,0.00050136,120]
[312706204,1706174214920,-301.17982304,0.00050136,120]
[312706205,1706174214944,-511.47,0.00050136,120]
[312706206,1706174214970,-500.0,0.00050136,120]
[312706207,1706174214995,-500.0,0.00050136,120]
[312706208,1706174215019,-500.0,0.00050136,120]
[312706209,1706174215042,-500.0,0.00050136,120]
[312706210,1706174215067,-500.0,0.00050136,120]
[312706211,1706174215091,-500.0,0.00050136,120]
[312706212,1706174215115,-500.0,0.00050136,120]
[312706213,1706174215141,-500.0,0.00050136,120]
[312706214,1706174215165,-500.0,0.00050136,120]
[312706215,1706174215189,-500.0,0.00050136,120]
[312706216,1706174215212,-500.0,0.00050136,120]
[312706217,1706174215236,-500.0,0.00050136,120]
[312706218,1706174215261,-1320.99,0.00050136,120]
[312706219,1706174215284,-500.0,0.00050136,120]
[312706220,1706174215307,-500.0,0.00050136,120]
[312706221,1706174215332,-500.0,0.00050136,120]
[312706222,1706174215356,-384.68812627,0.00050136,120]
[312706223,1706174215380,-500.0,0.00050136,120]
[312706224,1706174215403,-933.93,0.00050136,120]
[312706225,1706174215428,-504.51352917,0.00050136,120]
[312706226,1706174215452,-500.0,0.00050136,120]
[312706227,1706174215475,-570.29,0.00050136,120]
[312706228,1706174215498,-603.85572555,0.00050136,120]
[312706229,1706174215523,-500.0,0.00050136,120]
[312706230,1706174215547,-500.0,0.00050136,120]
[312706231,1706174215570,-500.0,0.00050136,120]
[312706232,1706174215594,-500.0,0.00050136,120]
[312706233,1706174215619,-510.45169244,0.00050136,120]
[312706234,1706174215642,-519.7,0.00050136,120]
[312706235,1706174215667,-500.0,0.00050136,120]
[312706236,1706174215690,-500.0,0.00050136,120]
[312706237,1706174215713,-500.0,0.00050136,120]
[312706238,1706174215737,-500.0,0.00050136,120]
[312706239,1706174215762,-500.0,0.00050136,120]
[312706240,1706174215786,-1541.6,0.00050136,120]
[312706241,1706174215811,-1163.28,0.00050136,120]
[312706242,1706174215835,-500.0,0.00050136,120]
[312706243,1706174215860,-506.89923893,0.00050136,120]
[312706244,1706174215955,-500.0,0.00050136,120]
[312706245,1706174215979,-500.0,0.00050136,120]
[312706246,1706174216002,-500.0,0.00050136,120]
[312706247,1706174216027,-680.71,0.00050136,120]
[312706248,1706174216051,-674.55,0.00050136,120]
[312706249,1706174216075,-500.0,0.00050136,120]
[312706250,1706174216098,-500.0,0.00050136,120]
[312706251,1706174216122,-500.0,0.00050136,120]
[312706252,1706174216145,-500.0,0.00050136,60]
[312706253,1706174216168,-500.0,0.00050136,120]
[312706254,1706174216192,-500.0,0.00050136,120]
[312706255,1706174216216,-500.0,0.00050136,120]
[312706256,1706174216242,-1391.77,0.00050136,120]
[312706257,1706174216267,-600.0,0.00050136,120]
[312706258,1706174216292,-500.0,0.00050136,120]
[312706259,1706174216318,-1497.83,0.00050136,120]
[312706260,1706174216343,-1205.12,0.00050136,120]
[312706261,1706174216370,-500.0,0.00050136,120]
[312706262,1706174216395,-500.0,0.00050136,120]
[312706263,1706174216421,-500.0,0.00050136,120]
[312706264,1706174216445,-2036.55,0.00050136,120]
[312706265,1706174216470,-549.01,0.00050136,120]
[312706266,1706174216496,-605.42,0.00050136,120]
[312706267,1706174216521,-1951.66,0.00050136,120]
[312706268,1706174216546,-676.19,0.00050136,120]
[312706269,1706174216570,-1357.62,0.00050136,120]
[312706270,1706174216594,-500.0,0.00050136,120]
[312706271,1706174216617,-1041.67,0.00050136,120]
[312706272,1706174216643,-508.79860651,0.00050136,120]
[312706273,1706174216668,-500.0,0.00050136,120]
[312706274,1706174216691,-500.0,0.00050136,120]
[312706275,1706174216716,-500.0,0.00050136,120]
[312706276,1706174216740,-500.0,0.00050136,120]
[312706277,1706174216768,-545.27,0.00050136,120]
[312706278,1706174216793,-500.0,0.00050136,120]
[312706279,1706174216818,-2255.7,0.00050136,120]
[312706280,1706174216842,-619.32240226,0.00050136,120]
[312706281,1706174216867,-500.0,0.00050136,120]
[312706282,1706174216891,-492.88084064,0.00050136,120]
[312706283,1706174216916,-842.04,0.00050136,120]
[312706284,1706174216941,-500.0,0.00050136,120]
[312706285,1706174216994,-500.0,0.00050136,120]
[312706286,1706174217018,-522.23,0.00050136,120]
[312706287,1706174217042,-501.76932846,0.00050136,120]
[312706288,1706174217065,-1611.85,0.00050136,120]
[312706289,1706174217089,-500.0,0.00050136,120]
[312706290,1706174217115,-500.0,0.00050136,120]
[312706291,1706174217138,-500.0,0.00050136,120]
[312706292,1706174217162,-330.68859674,0.00050136,120]
[312706293,1706174217186,-594.6,0.00050136,120]
[312706294,1706174217210,-500.0,0.00050136,120]
[312706295,1706174217234,-500.0,0.00050136,60]
[312706296,1706174217257,-505.03687293,0.00050136,120]
[312706297,1706174217281,-773.17,0.00050136,120]
[312706298,1706174217305,-576.56,0.00050136,120]
[312706299,1706174217329,-500.0,0.00050136,120]
[312706300,1706174217353,-1394.39,0.00050136,120]
[312706301,1706174217376,-500.0,0.00050136,120]
[312706302,1706174217399,-504.39625613,0.00050136,120]
[312706303,1706174217497,-1637.55,0.00050136,120]
[312706304,1706174217522,-500.0,0.00050136,120]
[312706305,1706174217547,-500.0,0.00050136,120]
[312706306,1706174217571,-500.0,0.00050136,120]
[312706307,1706174217595,-500.0,0.00050136,120]
[312706308,1706174217619,-192.50968286,0.00050136,120]
[312706309,1706174217644,-2198.17,0.00050136,120]
[312706310,1706174217667,-151.97009506,0.00050252,60]
[312706311,1706174217692,-440.0,0.00050262,120]
[312706312,1706174217715,-183.34727146,0.0005041,120]
[312706313,1706174217739,-500.0,0.0005041,120]
[312706314,1706174217768,-500.0,0.0005041,120]
[312706315,1706174217792,-560.83,0.0005041,120]
[312706316,1706174217816,-500.0,0.0005041,120]
[312706317,1706174217841,-500.0,0.0005041,120]
[312706318,1706174217865,-500.0,0.0005041,120]
[312706319,1706174217890,-500.0,0.0005041,120]
[312706320,1706174217914,-500.0,0.0005041,120]
[312706321,1706174217937,-542.32,0.0005041,120]
[312706322,1706174217962,-500.0,0.0005041,120]
[312706323,1706174217985,-500.0,0.0005041,120]
[312706324,1706174218010,-500.0,0.0005041,120]
[312706325,1706174218034,-500.0,0.0005041,120]
[312706326,1706174218058,-500.0,0.0005041,120]
[312706327,1706174218081,-502.8449396,0.0005041,120]
[312706328,1706174218105,-500.0,0.0005041,120]
[312706329,1706174218129,-500.0,0.0005041,120]
[312706330,1706174218154,-500.0,0.0005041,120]
[312706331,1706174218178,-500.0,0.0005041,120]
[312706332,1706174218202,-500.0,0.0005041,120]
[312706333,1706174218226,-500.0,0.0005041,120]
[312706334,1706174218250,-524.62555672,0.0005041,120]
[312706335,1706174218273,-500.0,0.0005041,120]
[312706336,1706174218297,-500.0,0.0005041,120]
[312706337,1706174218321,-500.0,0.0005041,120]
[312706338,1706174218346,-500.0,0.0005041,120]
[312706339,1706174218370,-500.0,0.0005041,120]
[312706340,1706174218393,-500.0,0.0005041,120]
[312706341,1706174218418,-732.6,0.0005041,120]
[312706342,1706174218442,-500.0,0.0005041,120]
[312706343,1706174218466,-500.0,0.0005041,120]
[312706344,1706174218489,-500.0,0.0005041,120]
[312706345,1706174218512,-500.0,0.0005041,120]
[312706346,1706174218535,-500.0,0.0005041,120]
[312706347,1706174218559,-500.0,0.0005041,120]
[312706348,1706174218582,-623.76,0.0005041,120]
[312706349,1706174218605,-500.0,0.0005041,120]
[312706350,1706174218628,-500.0,0.0005041,120]
[312706351,1706174218651,-500.0,0.0005041,120]
[312706352,1706174218675,-505.49128279,0.0005041,120]
[312706353,1706174218699,-513.79610256,0.0005041,120]
[312706354,1706174218722,-500.0,0.0005041,120]
[312706355,1706174218746,-505.33,0.0005041,120]
[312706356,1706174218769,-500.0,0.0005041,120]
[312706357,1706174218793,-500.0,0.0005041,120]
[312706358,1706174218817,-500.0,0.0005041,120]
[312706359,1706174218909,-708.5,0.0005041,120]
[312706360,1706174218934,-214.77071089,0.0005041,120]
[312706361,1706174218959,-500.0,0.0005041,120]
[312706362,1706174218983,-519.85,0.0005041,120]
[312706363,1706174219007,-541.46,0.0005041,120]
[312706364,1706174219031,-500.0,0.0005041,120]
[312706365,1706174219055,-500.0,0.0005041,120]
[312706366,1706174219079,-500.0,0.0005041,120]
[312706367,1706174219103,-621.56,0.0005041,120]
[312706368,1706174219126,-150.0,0.0005041,120]
[312706369,1706174219150,-434.46583882,0.0005041,120]
[312706370,1706174219173,-584.81020763,0.0005041,120]
[312706371,1706174219197,-500.0,0.0005041,120]
[312706372,1706174219222,-500.0,0.0005041,120]
[312706373,1706174219247,-500.0,0.0005041,120]
[312706374,1706174219272,-500.0,0.0005041,120]
[312706375,1706174219295,-541.89,0.0005041,120]
[312706376,1706174219320,-500.0,0.0005041,120]
[312706377,1706174219345,-500.0,0.0005041,120]
[312706378,1706174219372,-506.24698428,0.0005041,120]
[312706379,1706174219397,-647.93,0.0005041,120]
[312706380,1706174219421,-500.0,0.0005041,120]
[312706381,1706174219446,-511.47,0.0005041,120]
[312706382,1706174219472,-500.0,0.0005041,120]
[312706383,1706174219495,-500.0,0.0005041,120]
[312706384,1706174219520,-500.0,0.0005041,120]
[312706385,1706174219544,-500.0,0.0005041,120]
[312706386,1706174219569,-500.0,0.0005041,120]
[312706387,1706174219593,-506.2122123,0.0005041,120]
[312706388,1706174219617,-500.0,0.0005041,120]
[312706389,1706174219641,-500.0,0.0005041,120]
[312706390,1706174219666,-500.0,0.0005041,120]
[312706391,1706174219690,-500.0,0.0005041,120]
[312706392,1706174219716,-203.28456112,0.0005041,120]
[312706393,1706174219742,-500.0,0.0005041,120]
[312706394,1706174219769,-1320.99,0.0005041,120]
[312706395,1706174219795,-500.0,0.0005041,120]
[312706396,1706174219818,-500.0,0.0005041,120]
[312706397,1706174219844,-500.0,0.0005041,120]